lending/lending_fUSD_20240809
["ID","MTS","AMOUNT","RATE_DAILY","PERIOD"]
[334499099,1723168279333,-500.0,0.00024499,5]
[334499100,1723168279472,-500.0,0.00024499,5]
[334499101,1723168279482,-642.51925385,0.00024499,5]
[334499102,1723168279492,-577.33,0.00024499,5]
[334499103,1723168279502,-577.33,0.00024499,5]
[334499104,1723168279514,-577.33,0.00024499,5]
[334499105,1723168279524,-577.33,0.00024499,5]
[334499106,1723168279534,-577.33,0.00024499,5]
[334499107,1723168279544,-577.33,0.00024499,5]
[334499108,1723168279554,-577.33,0.00024499,5]
[334499109,1723168279565,-577.33,0.00024499,5]
[334499110,1723168279575,-577.33,0.00024499,5]
[334499111,1723168279585,-577.42779632,0.00024499,5]
[334499112,1723168279595,-500.0,0.00024499,5]
[334499113,1723168279606,-151.0,0.00024499,7]
[334499114,1723168279615,-500.0,0.00024499,5]
[334499115,1723168279625,-151.0,0.00024499,7]
[334499116,1723168279636,-500.0,0.00024499,5]
[334499117,1723168279650,-151.0,0.00024499,7]
[334499118,1723168279660,-500.0,0.00024499,5]
[334499119,1723168279670,-151.0,0.00024499,7]
[334499120,1723168279680,-500.0,0.00024499,5]
[334499121,1723168279690,-151.0,0.00024499,7]
[334499122,1723168279700,-500.0,0.00024499,5]
[334499123,1723168279710,-500.0,0.00024499,5]
[334499124,1723168279722,-500.0,0.00024499,5]
[334499125,1723168279734,-151.0,0.00024499,7]
[334499126,1723168279743,-500.0,0.00024499,5]
[334499127,1723168279753,-500.0,0.00024499,5]
[334499128,1723168279764,-151.0,0.00024499,7]
[334499129,1723168279773,-500.0,0.00024499,5]
[334499130,1723168279783,-500.0,0.00024499,5]
[334499131,1723168279792,-500.0,0.00024499,5]
[334499132,1723168279802,-444.855722,0.00024499,5]
[334499133,1723168279811,-318.39976183,0.00024499,5]
[334499134,1723168279820,-589.74,0.00024499,5]
[334499135,1723168279829,-252.310066,0.00024499,7]
[334499136,1723168279839,-589.74,0.00024499,5]
[334499137,1723168279848,-589.74,0.00024499,5]
[334499138,1723168279858,-589.74,0.00024499,5]
[334499139,1723168279868,-589.74,0.00024499,5]
[334499140,1723168279877,-589.74,0.00024499,5]
[334499141,1723168279887,-589.74,0.00024499,5]
[334499142,1723168279897,-589.83801803,0.00024499,5]
[334499143,1723168279906,-500.0,0.00024499,5]
[334499144,1723168279916,-500.0,0.00024499,5]
[334499145,1723168279926,-500.0,0.00024499,5]
[334499146,1723168279936,-500.0,0.00024499,5]
[334499147,1723168279946,-588.26555372,0.00024499,5]
[334499148,1723168279956,-985.26,0.00024499,5]
[334499149,1723168279966,-985.26,0.00024499,5]
[334499150,1723168279975,-985.26,0.00024499,5]
[334499151,1723168279986,-985.26,0.00024499,5]
[334499152,1723168279997,-985.26,0.00024499,5]
[334499153,1723168280008,-985.26,0.00024499,5]
[334499154,1723168280018,-985.26,0.00024499,5]
[334499155,1723168280028,-985.26,0.00024499,5]
[334499156,1723168280039,-985.26,0.00024499,5]
[334499157,1723168280050,-985.26,0.00024499,5]
[334499158,1723168280060,-985.26,0.00024499,5]
[334499159,1723168280071,-985.31018904,0.00024499,5]
[334499160,1723168280081,-731.33,0.00024499,5]
[334499161,1723168280091,-731.33,0.00024499,5]
[334499162,1723168280103,-731.33,0.00024499,5]
[334499163,1723168280113,-731.33,0.00024499,5]
[334499164,1723168280125,-731.33,0.00024499,5]
[334499165,1723168280136,-500.0,0.00024499,5]
[334499166,1723168280147,-731.33,0.00024499,5]
[334499167,1723168280159,-160.55797264,0.00024499,5]
[334499168,1723168280171,-731.33,0.00024499,5]
[334499169,1723168280182,-731.33,0.00024499,5]
[334499170,1723168280193,-731.33,0.00024499,5]
[334499171,1723168280202,-731.33,0.00024499,5]
[334499172,1723168280213,-731.33,0.00024499,5]
[334499173,1723168280223,-1458.27,0.00024499,5]
[334499174,1723168280232,-731.3834917,0.00024499,5]
[334499175,1723168280241,-1458.27,0.00024499,5]
[334499176,1723168280251,-1458.27,0.00024499,5]
[334499177,1723168280261,-1458.27,0.00024499,5]
[334499178,1723168280273,-1458.27,0.00024499,5]
[334499179,1723168280283,-1458.27,0.00024499,5]
[334499180,1723168280293,-1458.27,0.00024499,5]
[334499181,1723168280303,-1458.27,0.00024499,5]
[334499182,1723168280312,-496.55331394,0.00024499,5]
[334499183,1723168280323,-1458.27,0.00024499,5]
[334499184,1723168280334,-1458.27,0.00024499,5]
[334499185,1723168280344,-1458.27,0.00024499,5]
[334499186,1723168280355,-1458.29360166,0.00024499,5]
[334499187,1723168280364,-500.0,0.00024499,5]
[334499188,1723168280374,-500.0,0.00024499,5]
[334499189,1723168280384,-519.45,0.00024499,5]
[334499190,1723168280394,-565.32837402,0.00024499,5]
[334499191,1723168280404,-519.45,0.00024499,5]
[334499192,1723168280414,-519.45,0.00024499,5]
[334499193,1723168280425,-519.45,0.00024499,5]
[334499194,1723168280436,-500.0,0.00024499,5]
[334499195,1723168280445,-519.45,0.00024499,5]
[334499196,1723168280454,-500.0,0.00024499,5]
[334499197,1723168280464,-519.45,0.00024499,5]
[334499198,1723168280475,-500.0,0.00024499,5]
[334499199,1723168280486,-519.45,0.00024499,5]
[334499200,1723168280495,-500.0,0.00024499,5]
[334499201,1723168280505,-519.45,0.00024499,5]
[334499202,1723168280516,-500.0,0.00024499,5]
[334499203,1723168280525,-519.45,0.00024499,5]
[334499204,1723168280534,-500.0,0.00024499,5]
[334499205,1723168280544,-500.0,0.00024499,5]
[334499206,1723168280553,-500.0,0.00024499,5]
[334499207,1723168280563,-519.45,0.00024499,5]
[334499208,1723168280572,-500.0,0.00024499,5]
[334499209,1723168280584,-519.45,0.00024499,5]
[334499210,1723168280595,-500.0,0.00024499,5]
[334499211,1723168280605,-412.33719116,0.00024499,5]
[334499212,1723168280615,-519.46589761,0.00024499,5]
[334499213,1723168280624,-1928.84,0.00024499,5]
[334499214,1723168280634,-1928.84,0.00024499,5]
[334499215,1723168280646,-1928.84,0.00024499,5]
[334499216,1723168280656,-1928.84,0.00024499,5]
[334499217,1723168280665,-1928.84,0.00024499,5]
[334499218,1723168280675,-1928.84,0.00024499,5]
[334499219,1723168280684,-1928.84,0.00024499,5]
[334499220,1723168280694,-1928.88840349,0.00024499,5]
[334499221,1723168280704,-500.0,0.00024499,5]
[334499222,1723168280714,-500.0,0.00024499,5]
[334499223,1723168280726,-500.0,0.00024499,5]
[334499224,1723168280736,-500.0,0.00024499,5]
[334499225,1723168280746,-500.0,0.00024499,5]
[334499226,1723168280756,-500.0,0.00024499,5]
[334499227,1723168280767,-500.0,0.00024499,5]
[334499228,1723168280777,-500.0,0.00024499,5]
[334499229,1723168280787,-500.0,0.00024499,5]
[334499230,1723168280797,-500.0,0.00024499,5]
[334499231,1723168280806,-1089.79,0.00024499,5]
[334499232,1723168280816,-317.83672481,0.00024499,5]
[334499233,1723168280826,-1089.79,0.00024499,5]
[334499234,1723168280835,-1089.79,0.00024499,5]
[334499235,1723168280844,-1089.79,0.00024499,5]
[334499236,1723168280854,-1089.79,0.00024499,5]
[334499237,1723168280863,-1089.79,0.00024499,5]
[334499238,1723168280873,-1089.79,0.00024499,5]
[334499239,1723168280882,-1089.79,0.00024499,5]
[334499240,1723168280891,-500.0,0.00024499,5]
[334499241,1723168280901,-1089.79,0.00024499,5]
[334499242,1723168280911,-500.0,0.00024499,5]
[334499243,1723168280920,-1089.79,0.00024499,5]
[334499244,1723168280930,-500.0,0.00024499,5]
[334499245,1723168280940,-1089.79,0.00024499,5]
[334499246,1723168280950,-547.68131363,0.00024499,5]
[334499247,1723168280959,-743.86,0.00024499,5]
[334499248,1723168280969,-1089.85037002,0.00024499,5]
[334499249,1723168280979,-743.86,0.00024499,5]
[334499250,1723168280989,-743.86,0.00024499,5]
[334499251,1723168280999,-743.86,0.00024499,5]
[334499252,1723168281009,-743.86,0.00024499,5]
[334499253,1723168281019,-743.86,0.00024499,5]
[334499254,1723168281029,-743.86,0.00024499,5]
[334499255,1723168281038,-743.86,0.00024499,5]
[334499256,1723168281048,-743.86,0.00024499,5]
[334499257,1723168281058,-743.86,0.00024499,5]
[334499258,1723168281071,-743.86,0.00024499,5]
[334499259,1723168281081,-744.01304758,0.00024499,5]
[334499260,1723168281090,-977.41,0.00024499,5]
[334499261,1723168281099,-977.41,0.00024499,5]
[334499262,1723168281108,-977.41,0.00024499,5]
[334499263,1723168281118,-4143.72,0.00024499,5]
[334499264,1723168281127,-977.41,0.00024499,5]
[334499265,1723168281139,-4143.72,0.00024499,5]
[334499266,1723168281148,-977.41,0.00024499,5]
[334499267,1723168281159,-4143.72,0.00024499,5]
[334499268,1723168281170,-977.41,0.00024499,5]
[334499269,1723168281179,-4143.72,0.00024499,5]
[334499270,1723168281193,-500.0,0.00024499,5]
[334499271,1723168281203,-977.41,0.00024499,5]
[334499272,1723168281214,-4143.72,0.00024499,5]
[334499273,1723168281225,-500.0,0.00024499,5]
[334499274,1723168281236,-977.41,0.00024499,5]
[334499275,1723168281245,-4143.72,0.00024499,5]
[334499276,1723168281255,-500.0,0.00024499,5]
[334499277,1723168281267,-977.41,0.00024499,5]
[334499278,1723168281277,-4143.72,0.00024499,5]
[334499279,1723168281286,-977.41,0.00024499,5]
[334499280,1723168281295,-500.0,0.00024499,5]
[334499281,1723168281305,-4143.72158772,0.00024499,5]
[334499282,1723168281316,-977.41,0.00024499,5]
[334499283,1723168281327,-500.0,0.00024499,5]
[334499284,1723168281337,-592.25816955,0.00024499,5]
[334499285,1723168281347,-977.64220808,0.00024499,5]
[334499286,1723168281356,-3275.82,0.00024499,5]
[334499287,1723168281365,-3275.82,0.00024499,5]
[334499288,1723168281375,-3275.82,0.00024499,5]
[334499289,1723168281384,-3275.82,0.00024499,5]
[334499290,1723168281393,-3275.82,0.00024499,5]
[334499291,1723168281402,-3275.82,0.00024499,5]
[334499292,1723168281411,-3275.82,0.00024499,5]
[334499293,1723168281421,-3276.03553385,0.00024499,5]
[334499294,1723168281430,-500.0,0.00024499,5]
[334499295,1723168281440,-500.0,0.00024499,5]
[334499296,1723168281449,-500.0,0.00024499,5]
[334499297,1723168281458,-566.13,0.00024499,5]
[334499298,1723168281467,-500.0,0.00024499,5]
[334499299,1723168281477,-1601.81,0.00024499,5]
[334499300,1723168281486,-566.13,0.00024499,5]
[334499301,1723168281496,-500.0,0.00024499,5]
[334499302,1723168281506,-1601.81,0.00024499,5]
[334499303,1723168281517,-566.13,0.00024499,5]
[334499304,1723168281526,-500.0,0.00024499,5]
[334499305,1723168281536,-1601.81,0.00024499,5]
[334499306,1723168281546,-500.0,0.00024499,5]
[334499307,1723168281556,-566.13,0.00024499,5]
[334499308,1723168281565,-1601.81,0.00024499,5]
[334499309,1723168281575,-566.13,0.00024499,5]
[334499310,1723168281585,-710.65,0.00024499,5]
[334499311,1723168281595,-1601.81,0.00024499,5]
[334499312,1723168281604,-500.0,0.00024499,5]
[334499313,1723168281613,-566.13,0.00024499,5]
[334499314,1723168281623,-710.65,0.00024499,5]
[334499315,1723168281633,-1601.81,0.00024499,5]
[334499316,1723168281645,-500.0,0.00024499,5]
[334499317,1723168281654,-710.65,0.00024499,5]
[334499318,1723168281664,-566.13,0.00024499,5]
[334499319,1723168281673,-1601.81,0.00024499,5]
[334499320,1723168281682,-296.10198381,0.00024499,5]
[334499321,1723168281693,-710.65,0.00024499,5]
[334499322,1723168281702,-566.13,0.00024499,5]
[334499323,1723168281711,-710.65,0.00024499,5]
[334499324,1723168281723,-566.13,0.00024499,5]
[334499325,1723168281733,-1601.90185585,0.00024499,5]
[334499326,1723168281743,-710.65,0.00024499,5]
[334499327,1723168281753,-566.13,0.00024499,5]
[334499328,1723168281762,-710.65,0.00024499,5]
[334499329,1723168281773,-566.13,0.00024499,5]
[334499330,1723168281783,-710.65,0.00024499,5]
[334499331,1723168281791,-566.1543018,0.00024499,5]
[334499332,1723168281801,-710.65,0.00024499,5]
[334499333,1723168281811,-500.0,0.00024499,5]
[334499334,1723168281821,-1174.37,0.00024499,5]
[334499335,1723168281830,-710.65,0.00024499,5]
[334499336,1723168281839,-504.71173774,0.00024499,5]
[334499337,1723168281849,-1174.37,0.00024499,5]
[334499338,1723168281859,-710.65,0.00024499,5]
[334499339,1723168281869,-1174.37,0.00024499,5]
[334499340,1723168281878,-710.73605194,0.00024499,5]
[334499341,1723168281887,-1174.37,0.00024499,5]
[334499342,1723168281897,-1174.37,0.00024499,5]
[334499343,1723168281906,-1174.37,0.00024499,5]
[334499344,1723168281946,-1174.37,0.00024499,5]
[334499345,1723168281956,-1174.54114863,0.00024499,5]
[334499346,1723168281965,-151.0,0.00024499,7]
[334499347,1723168281975,-3349.24,0.00024499,5]
[334499348,1723168281985,-409.84920186,0.000245,2]
[334499349,1723168281995,-111899.08615109,0.000245,5]
[334499350,1723168282032,-703.655,0.000245,5]
[334499351,1723168282043,-1904.32356102,0.000245,5]
[334499352,1723168282054,-45937.35101146,0.000245,5]
[334499353,1723168282146,-1000.0,0.00024299,2]
[334499354,1723168282158,-500.0,0.00024398,5]
[334499355,1723168282169,-500.0,0.00024398,5]
[334499356,1723168282180,-500.0,0.00024399,5]
[334499357,1723168282190,-500.0,0.00024399,5]
[334499358,1723168282200,-500.0,0.00024399,5]
[334499359,1723168282209,-189.03034647,0.00024399,5]
[334499360,1723168282263,-296.13443335,0.00024399,5]
[334499361,1723168282276,-16.49642698,0.00024399,5]
[334499362,1723168282285,-500.0,0.00024488,5]
[334499363,1723168282295,-123.72757302,0.00024488,5]
[334499364,1723168282306,-376.27242698,0.00024488,5]
[334499365,1723168282317,-75.41667302,0.00024489,5]
[334499366,1723168282330,-424.58332698,0.00024489,5]
[334499367,1723168282341,-500.0,0.00024497,5]
[334499368,1723168282352,-500.0,0.00024497,5]
[334499369,1723168282362,-500.0,0.00024498,5]
[334499370,1723168282374,-500.0,0.00024498,5]
[334499371,1723168282384,-500.0,0.00024498,5]
[334499372,1723168282394,-235.59978452,0.00024498,5]
[334499373,1723168282408,-264.40021548,0.00024498,5]
[334499374,1723168282419,-327.99978402,0.00024498,5]
[334499375,1723168282432,-172.00021598,0.00024498,5]
[334499376,1723168282442,-151.0,0.00024499,7]
[334499377,1723168282453,-587.61978402,0.00024499,5]
[334499378,1723168282473,-500.0,0.00024498,5]
[334499379,1723168282482,-460.20388709,0.00024498,5]
[334499380,1723168282491,-1461.39611291,0.00024499,5]
[334499381,1723168282502,-1300.22410307,0.00024499,5]
[334499382,1723168282511,-434.68610761,0.00024499,5]
[334499383,1723168282524,-256.32999992,0.00024499,5]
[334499384,1723168282535,-604.07802196,0.00024499,5]
[334499385,1723168282546,-2054.14587051,0.00024499,5]
[334499386,1723168282555,-178.440876,0.00024499,7]
[334499387,1723168282564,-3349.24,0.00024499,5]
[334499388,1723168282573,-3349.24,0.00024499,5]
[334499389,1723168282583,-3115.06214551,0.00024499,5]
[334499390,1723168282594,-234.17785449,0.00024499,5]
[334499391,1723168282603,-500.0,0.00024499,5]
[334499392,1723168282612,-3349.24,0.00024499,5]
[334499393,1723168282622,-405.05446501,0.00024499,5]
[334499394,1723168282631,-3349.24757438,0.00024499,5]
[334499395,1723168282644,-602637.38055889,0.000245,5]
[334499396,1723168282663,-394.58101345,0.00024498,5]
[334499397,1723168282674,-105.41898655,0.00024498,5]
[334499398,1723168282684,-5521.10484645,0.000245,5]
[334499399,1723168282694,-25007.0,0.000245,5]
[334499400,1723168283120,-500.0,0.00024398,5]
[334499401,1723168283129,-73.43013765,0.00024399,5]
[334499402,1723168283140,-426.56986235,0.00024399,5]
[334499403,1723168283150,-322.25915966,0.00024399,5]
[334499404,1723168283160,-275.5687984,0.00024399,5]
[334499405,1723168283172,-1.99523,0.00024399,5]
[334499406,1723168283181,-471.17349116,0.00024399,5]
[334499407,1723168283192,-31.05225244,0.00024399,5]
[334499408,1723168283201,-500.0,0.00024488,5]
[334499409,1723168283210,-151.0,0.00024497,7]
[334499410,1723168283220,-569.46410245,0.00024497,5]
[334499411,1723168283230,-500.0,0.00024498,5]
[334499412,1723168283239,-500.0,0.00024498,5]
[334499413,1723168283249,-500.0,0.00024498,5]
[334499414,1723168283259,-214.186706,0.00024498,7]
[334499415,1723168283270,-500.0,0.00024498,5]
[334499416,1723168283282,-500.0,0.00024498,5]
[334499417,1723168283292,-500.0,0.00024499,5]
[334499418,1723168283301,-537.00886959,0.00024499,5]
[334499419,1723168283310,-4394.13679748,0.000245,5]
[334499420,1723168283436,-335.60142443,0.000245,5]
[334499421,1723168283448,-62003.14113327,0.000245,5]
[334499422,1723168283459,-3333.66167247,0.000245,5]
[334499423,1723168283471,-80964.07586882,0.000245,5]
[334499424,1723168283482,-18489.299042,0.000245,5]
[334499425,1723168283494,-1613.48867776,0.000245,5]
[334499426,1723168283505,-336.21587999,0.000245,5]
[334499427,1723168283517,-4017.62324958,0.000245,5]
[334499428,1723168283529,-3765.69953211,0.000245,5]
[334499429,1723168283540,-487.17025953,0.000245,5]
[334499430,1723168283552,-2909.7625,0.000245,5]
[334499431,1723168283563,-970.74420354,0.000245,5]
[334499432,1723168283575,-353.68141749,0.000245,5]
[334499433,1723168283586,-1529.31676669,0.000245,5]
[334499434,1723168283598,-605.67764587,0.000245,5]
[334499435,1723168283610,-1506.12,0.000245,5]
[334499436,1723168283622,-500.0,0.000245,5]
[334499437,1723168283634,-14496.75874107,0.000245,5]
[334499438,1723168283651,-9831.76687634,0.000245,5]
[334499439,1723168283662,-7036.33453213,0.000245,5]
[334499440,1723168283673,-3337.46412,0.000245,5]
[334499441,1723168283685,-610.274448,0.000245,5]
[334499442,1723168283697,-253.23,0.000245,5]
[334499443,1723168283709,-261.3105898,0.000245,5]
[334499444,1723168283723,-1537.74845445,0.000245,5]
[334499445,1723168839651,-164.64,0.00013973,2]
[334499447,1723168901153,1313.19845383,0.00013973,2]
[334499448,1723168923667,762.4142475,0.00013973,2]
[334499449,1723168924752,7759.74729867,0.00013973,2]
[334499462,1723169410036,79981.56267219,0.00025,60]
[334499465,1723169431944,-150.0,0.00013972,2]
[334499466,1723169431954,-300.0,0.00013972,2]
[334499467,1723169431964,-300.0,0.00013972,2]
[334499468,1723169431973,-170.71562336,0.00013973,2]
[334499469,1723169431982,-23895.07543734,0.00013973,2]
[334499471,1723169431994,-159767.90961818,0.00013973,2]
[334499473,1723169432006,-3070.25593273,0.00013973,2]
[334499475,1723169432015,-1051.97205421,0.00013973,2]
[334499477,1723169432028,-227.71036735,0.00013973,2]
[334499479,1723169432037,-2565.44938053,0.00013973,2]
[334499481,1723169432046,-420.0,0.00015308,2]
[334499482,1723169432056,-306.72174365,0.00016897,2]
[334499483,1723169432067,-155.087437,0.00016897,2]
[334499484,1723169432078,-8503.60116739,0.00018703,2]
[334499486,1723169432087,-5000.0,0.00018703,2]
[334499488,1723169432097,-155.0,0.00019725,2]
[334499490,1723169432108,-265.73,0.00019875,2]
[334499492,1723169432119,-986.03637469,0.00020191,2]
[334499494,1723169432128,-155.5408845,0.00020899,2]
[334499496,1723169432137,-501.97121915,0.00020999,2]
[334499498,1723169432147,-175.49,0.00021739,2]
[334499500,1723169432156,-2311.68,0.00021775,2]
[334499502,1723169432165,-250.0,0.00021779,2]
[334499504,1723169432174,-250.0,0.00021792,2]
[334499506,1723169432183,-1000.0,0.00021814,2]
[334499508,1723169432193,-233.1,0.00021846,2]
[334499509,1723169432202,-150.71955521,0.00022044,2]
[334499510,1723169432212,-170.92,0.00022132,2]
[334499512,1723169432221,-170.25,0.00022132,2]
[334499513,1723169432230,-265.73,0.00022139,2]
[334499515,1723169432239,-179.31,0.00023002,2]
[334499517,1723169432249,-179.31,0.00023008,2]
[334499519,1723169432263,-179.31,0.00023014,2]
[334499521,1723169432272,-179.31,0.0002302,2]
[334499523,1723169432281,-179.31,0.00023026,2]
[334499524,1723169432291,-179.31,0.00023032,2]
[334499525,1723169432301,-179.31,0.00023038,2]
[334499526,1723169432310,-179.31,0.00023044,2]
[334499527,1723169432319,-179.31,0.0002305,2]
[334499528,1723169432328,-179.31,0.00023056,2]
[334499529,1723169432337,-179.31,0.00023062,2]
[334499530,1723169432346,-179.31,0.00023068,2]
[334499531,1723169432356,-179.31,0.00023074,2]
[334499532,1723169432365,-179.31,0.0002308,2]
[334499533,1723169432375,-179.31,0.00023086,2]
[334499534,1723169432384,-179.31,0.00023093,2]
[334499535,1723169432394,-179.31,0.00023099,2]
[334499536,1723169432404,-179.31,0.00023105,2]
[334499537,1723169432413,-179.31,0.00023111,2]
[334499538,1723169432422,-179.31,0.00023117,2]
[334499539,1723169432432,-10000.0,0.00023175,2]
[334499540,1723169432441,-183.263966,0.00023474,2]
[334499541,1723169432451,-500.0,0.000235,8]
[334499542,1723169432460,-841.54,0.00023534,2]
[334499543,1723169432469,-842.87,0.00023534,2]
[334499544,1723169432479,-352.9053,0.000236,2]
[334499545,1723169432488,-612.7058,0.000236,2]
[334499546,1723169432497,-1729.6089,0.000236,2]
[334499547,1723169432508,-462.6368,0.000236,2]
[334499548,1723169432517,-11949.7636,0.000236,2]
[334499549,1723169432527,-1100.0,0.000236,8]
[334499550,1723169432536,-320.76739225,0.000236,2]
[334499551,1723169432546,-363.23,0.00023671,2]
[334499552,1723169432555,-80424.1048023,0.0002369,4]
[334499553,1723169432565,-155.61,0.0002369,2]
[334499554,1723169432575,-488.1162,0.000237,2]
[334499555,1723169432584,-39139.1824,0.000237,2]
[334499556,1723169432593,-47534.86515108,0.000237,2]
[334499557,1723169432630,-6609.99999997,0.000237,2]
[334499558,1723169432641,-8204.41474252,0.000237,2]
[334499559,1723169432653,-364.72789729,0.000237,2]
[334499560,1723169432664,-1060.94448331,0.000237,2]
[334499561,1723169432677,-439.35,0.000237,2]
[334499562,1723169432689,-450.8448031,0.000237,2]
[334499563,1723169432700,-2631.1,0.000237,2]
[334499564,1723169432711,-23380.01215022,0.000237,2]
[334499569,1723169438083,-808.37671371,0.000237,2]
[334499570,1723169438294,-26072.1585588,0.000237,2]
[334499571,1723169438304,-54914.3886,0.000237,2]
[334499572,1723169438315,-125507.378,0.000237,2]
[334499573,1723169438324,-165.9391,0.000237,2]
[334499574,1723169438334,-500.0,0.000237,2]
[334499575,1723169438344,-1700.0,0.000237,8]
[334499576,1723169438353,-2300.0,0.000238,8]
[334499577,1723169438363,-320.76739224,0.00023867,2]
[334499578,1723169438372,-155.0,0.00023873,2]
[334499579,1723169438381,-166.99214818,0.00023873,2]
[334499580,1723169438391,-2800.0,0.000239,8]
[334499581,1723169438400,-739.05726191,0.00024,30]
[334499582,1723169438409,-1560.34761419,0.00024009,2]
[334499583,1723169438419,-180.0,0.00024019,2]
[334499584,1723169438428,-848.95,0.00024055,2]
[334499585,1723169438438,-835.07,0.00024055,2]
[334499586,1723169438447,-835.07,0.00024055,2]
[334499587,1723169438457,-500.0,0.00024109,5]
[334499588,1723169438466,-6456.68,0.00024109,5]
[334499589,1723169438474,-500.0,0.00024109,5]
[334499590,1723169438483,-500.0,0.00024109,5]
[334499591,1723169438492,-500.0,0.00024109,5]
[334499592,1723169438501,-500.0,0.00024109,5]
[334499594,1723169438511,-500.0,0.00024109,5]
[334499596,1723169438521,-2697.27,0.00024109,5]
[334499598,1723169438530,-1161.67,0.00024109,5]
[334499600,1723169438539,-500.0,0.00024109,5]
[334499602,1723169438548,-3409.1,0.00024109,5]
[334499604,1723169438557,-1406.27,0.00024109,5]
[334499606,1723169438566,-2753.1,0.00024109,5]
[334499608,1723169438575,-2170.45,0.00024109,5]
[334499609,1723169438584,-542.44,0.00024109,5]
[334499611,1723169438593,-3235.97,0.00024109,5]
[334499613,1723169438602,-2522.23,0.00024109,5]
[334499616,1723169438611,-500.0,0.00024109,5]
[334499617,1723169438621,-500.0,0.00024109,5]
[334499619,1723169438630,-1200.24,0.00024109,5]
[334499621,1723169438639,-500.0,0.00024109,5]
[334499623,1723169438648,-990.0,0.00024109,5]
[334499625,1723169438658,-500.0,0.00024109,5]
[334499627,1723169438667,-500.0,0.00024109,5]
[334499629,1723169438676,-500.0,0.00024109,5]
[334499631,1723169438685,-4373.18,0.00024109,5]
[334499633,1723169438694,-1163.23,0.00024109,5]
[334499635,1723169438703,-995.57,0.00024109,5]
[334499637,1723169438712,-1323.81,0.00024109,5]
[334499639,1723169438721,-500.0,0.00024109,5]
[334499641,1723169438732,-738.6,0.00024109,5]
[334499643,1723169438741,-500.0,0.00024109,5]
[334499645,1723169438750,-500.0,0.00024109,5]
[334499647,1723169438760,-500.0,0.00024109,5]
[334499649,1723169438772,-500.0,0.00024109,5]
[334499651,1723169438785,-1354.12,0.00024109,5]
[334499653,1723169438794,-500.0,0.00024109,5]
[334499655,1723169438803,-500.0,0.00024109,5]
[334499657,1723169438812,-500.0,0.00024109,5]
[334499659,1723169438821,-500.0,0.00024109,5]
[334499661,1723169438831,-1332.41,0.00024109,5]
[334499663,1723169438842,-500.0,0.00024109,5]
[334499665,1723169438852,-500.0,0.00024109,5]
[334499667,1723169438861,-500.0,0.00024109,5]
[334499669,1723169438870,-965.55,0.00024109,5]
[334499671,1723169438880,-500.0,0.00024109,5]
[334499673,1723169438889,-710.5,0.00024109,5]
[334499675,1723169438899,-500.0,0.00024109,5]
[334499677,1723169438908,-500.0,0.00024109,5]
[334499679,1723169438917,-1117.97,0.00024109,5]
[334499681,1723169438927,-500.0,0.00024109,5]
[334499683,1723169438936,-1473.13,0.00024109,5]
[334499685,1723169438945,-500.0,0.00024109,5]
[334499687,1723169438955,-1301.42,0.00024109,5]
[334499689,1723169438964,-500.0,0.00024109,5]